bitfinex-derivatives/quotes_BTCF0:USTF0_20251209
["timestamp","ask_amount","ask_price","bid_price","bid_amount"]
[1765265442575,0.0839009,90410.0,90405.0,0.011]
[1765265442781,0.0839009,90410.0,90409.0,0.05903]
[1765265444276,0.0839009,90410.0,90409.0,0.06303]
[1765265445182,0.0849009,90410.0,90409.0,0.06803]
[1765265446779,0.07384,90410.0,90409.0,0.06803]
[1765265451383,0.05623,90410.0,90409.0,0.06803]
[1765265457089,0.00016585,90429.0,90428.0,0.07034]
[1765265458078,0.02763585,90429.0,90428.0,0.07034]
[1765265458281,0.00016585,90429.0,90428.0,0.07234]
[1765265458680,0.05539585,90429.0,90428.0,0.06103]
[1765265459186,0.05639585,90429.0,90428.0,0.06103]
[1765265461587,0.02863585,90429.0,90428.0,0.06103]
[1765265461787,0.00116585,90429.0,90428.0,0.06103]
[1765265461985,0.02863585,90429.0,90428.0,0.06103]
[1765265463794,0.05733585,90429.0,90428.0,0.06103]
[1765265466292,0.05733585,90429.0,90428.0,0.03142]
[1765265466498,0.05733585,90429.0,90428.0,0.06028]
[1765265474196,0.05733585,90429.0,90428.0,0.03142]
[1765265474402,0.05733585,90429.0,90428.0,0.002]
[1765265474602,0.05733585,90429.0,90428.0,0.03077]
[1765265474802,0.05733585,90429.0,90428.0,0.05971]
[1765265477998,0.00116585,90429.0,90428.0,0.0707687]
[1765265478303,0.00116585,90429.0,90428.0,0.08173799]
[1765265479003,0.00116585,90429.0,90428.0,0.0707687]
[1765265481914,0.00116585,90429.0,90428.0,0.08184483]
[1765265483715,0.00116585,90429.0,90428.0,0.0707687]
[1765265484914,0.00116585,90429.0,90428.0,0.05971]
[1765265486608,0.00116585,90429.0,90428.0,0.07374]
[1765265486818,0.00116585,90429.0,90428.0,0.0847987]
[1765265487206,0.00116585,90429.0,90428.0,0.12421037]
[1765265493028,0.05909585,90429.0,90428.0,0.09912167]
[1765265493227,0.05909585,90429.0,90428.0,0.05971]
[1765265493432,0.05909585,90429.0,90428.0,0.002]
[1765265494523,0.05909585,90429.0,90428.0,0.05971]
[1765265496538,0.05909585,90429.0,90428.0,0.0892428]
[1765265497131,0.05909585,90429.0,90428.0,0.05971]
[1765265498121,0.05909585,90429.0,90428.0,0.08925114]
[1765265498533,0.05909585,90429.0,90428.0,0.05971]
[1765265498723,0.05909585,90429.0,90428.0,0.03077]
[1765265501035,0.05909585,90429.0,90428.0,0.05971]
[1765265506740,0.05909585,90429.0,90428.0,0.0893007]
[1765265508844,0.05909585,90429.0,90428.0,0.05971]
[1765265509146,0.05741585,90429.0,90428.0,0.05971]
[1765265509542,0.00116585,90429.0,90428.0,0.07143]
[1765265511247,0.00116585,90429.0,90428.0,0.11084167]
[1765265511737,0.00116585,90429.0,90428.0,0.07143]
[1765265513451,0.05497,90437.0,90429.0,0.0110586]
[1765265513649,0.05497,90437.0,90436.0,0.05752]
[1765265514249,0.0660276,90437.0,90436.0,0.05752]
[1765265515846,0.0690276,90437.0,90436.0,0.05752]
[1765265516349,0.0690276,90437.0,90436.0,0.05852]
[1765265520652,0.05797,90437.0,90436.0,0.05852]
[1765265527059,0.0672293,90423.0,90422.0,0.09595945]
[1765265527260,0.0672293,90423.0,90422.0,0.05652]
[1765265528546,0.0672293,90423.0,90422.0,0.05752]
[1765265528748,0.0672293,90423.0,90422.0,0.06052]
[1765265530758,0.05617,90423.0,90422.0,0.06052]
[1765265531262,0.02859,90423.0,90422.0,0.06052]
[1765265531462,0.05617,90423.0,90422.0,0.06052]
[1765265532560,0.05617,90423.0,90422.0,0.03155]
[1765265532968,0.05617,90423.0,90422.0,0.004]
[1765265535058,0.05617,90423.0,90422.0,0.06147]
[1765265549762,0.0678887,90428.0,90427.0,0.05747]
[1765265549968,0.0678877,90436.0,90435.0,0.05747]
[1765265551080,0.0698877,90436.0,90435.0,0.05747]
[1765265552581,0.05883,90436.0,90435.0,0.05747]
[1765265552988,0.05883,90436.0,90435.0,0.05847]
[1765265554579,0.0758,90436.0,90435.0,0.02855]
[1765265554981,0.0758,90436.0,90435.0,0.05847]
[1765265558491,0.0758,90436.0,90435.0,0.001]
[1765265559089,0.0758,90436.0,90435.0,0.02855]
[1765265559294,0.0758,90436.0,90435.0,0.05847]
[1765265564297,0.0758,90436.0,90435.0,0.02855]
[1765265564594,0.0758,90436.0,90435.0,0.02866]
[1765265570794,0.0758,90436.0,90435.0,0.001]
[1765265578301,0.0758,90436.0,90435.0,0.02866]
[1765265578702,0.0758,90436.0,90435.0,0.001]
[1765265581889,0.0758,90436.0,90435.0,0.05779]
[1765265589607,0.002,90436.0,90435.0,0.05779]
[1765265590002,0.002,90436.0,90435.0,0.09722945]
[1765265590203,0.002,90436.0,90435.0,0.05779]
[1765265592115,0.00016585,90446.0,90445.0,0.0675966]
[1765265592422,0.00016585,90446.0,90445.0,0.10703832]
[1765265593216,0.00116585,90446.0,90445.0,0.0675966]
[1765265593416,0.04700974,90455.0,90448.0,0.0110562]
[1765265593714,0.05834,90455.0,90454.0,0.05447]
[1765265594120,0.0693954,90455.0,90454.0,0.05447]
[1765265594307,0.0860254,90455.0,90454.0,0.05447]
[1765265595510,0.0870254,90455.0,90454.0,0.05447]
[1765265596011,0.0753954,90455.0,90454.0,0.05447]
[1765265596205,0.06334,90455.0,90454.0,0.05447]
[1765265596405,0.06534,90455.0,90454.0,0.05447]
[1765265597021,0.08197,90455.0,90454.0,0.05447]
[1765265616024,0.08197,90455.0,90454.0,0.02717]
[1765265617135,0.08197,90455.0,90454.0,0.05447]
[1765265618040,0.06534,90455.0,90454.0,0.05447]
[1765265618436,0.03669,90455.0,90454.0,0.05447]
[1765265618642,0.008,90455.0,90454.0,0.05447]
[1765265618941,0.008,90455.0,90454.0,0.14368663]
[1765265619138,0.008,90455.0,90454.0,0.16341021]
[1765265619337,0.008,90455.0,90454.0,0.1136353]
[1765265619534,0.008,90455.0,90454.0,0.05447]
[1765265619733,0.03758269,90470.0,90469.0,0.05447]
[1765265620040,0.0110535,90471.0,90470.0,0.05447]
[1765265620338,0.069393,90475.0,90474.0,0.05447]
[1765265620555,0.10534974,90484.0,90483.0,0.065522]
[1765265620839,0.05834,90484.0,90483.0,0.05447]
[1765265621539,0.06234,90484.0,90483.0,0.05447]
[1765265622943,0.06834,90484.0,90483.0,0.05447]
[1765265623938,0.0566417,90484.0,90483.0,0.05447]
[1765265626332,0.04476342,90484.0,90483.0,0.05447]
[1765265629740,0.03923,90484.0,90483.0,0.05447]
[1765265630042,0.0678129,90475.0,90474.0,0.00016585]
[1765265631139,0.0698129,90475.0,90474.0,0.00016585]
[1765265631542,0.0718129,90475.0,90474.0,0.00016585]
[1765265631742,0.05676,90458.0,90457.0,0.08542404]
[1765265632848,0.06797985,90467.0,90466.0,0.05582]
[1765265633042,0.05692585,90467.0,90466.0,0.05582]
[1765265633941,0.00016585,90467.0,90466.0,0.066874]
[1765265634351,0.13294685,90490.0,90489.0,0.05582]
[1765265634542,0.0689162,90490.0,90489.0,0.05582]
[1765265635944,0.0860062,90490.0,90489.0,0.05582]
[1765265636147,0.0920062,90490.0,90489.0,0.05582]
[1765265636340,0.0749162,90490.0,90489.0,0.05582]
[1765265636747,0.0789162,90490.0,90489.0,0.05682]
[1765265637746,0.0678651,90490.0,90489.0,0.05682]
[1765265639954,0.0403351,90490.0,90489.0,0.05682]
[1765265640154,0.0111051,90490.0,90489.0,0.05682]
[1765265640557,0.0111051,90490.0,90489.0,0.06773282]
[1765265641051,0.0111051,90490.0,90489.0,0.05682]
[1765265641253,0.0101051,90490.0,90489.0,0.05682]
[1765265641844,0.0628651,90490.0,90489.0,0.05582]
[1765265642046,0.0668651,90490.0,90489.0,0.05582]
[1765265643069,0.0845851,90490.0,90489.0,0.05582]
[1765265645845,0.0668651,90490.0,90489.0,0.05582]
[1765265647751,0.0845851,90490.0,90489.0,0.05582]
[1765265647957,0.0845851,90490.0,90489.0,0.02859]
[1765265648159,0.07405,90485.0,90484.0,0.05571]
[1765265648347,0.07405,90485.0,90484.0,0.02861]
[1765265648548,0.0851017,90485.0,90484.0,0.05812272]
[1765265648944,0.0851017,90485.0,90484.0,0.02861]
[1765265649149,0.0851017,90485.0,90484.0,0.05571]
[1765265649362,0.0921017,90485.0,90484.0,0.05571]
[1765265651056,0.0921017,90485.0,90483.0,0.02951272]
[1765265651264,0.05633,90484.0,90483.0,0.02951272]
[1765265651763,0.0673822,90481.0,90480.0,0.00016585]
[1765265651951,0.0673833,90472.0,90470.0,0.02951272]
[1765265652145,0.0673833,90472.0,90465.0,0.03947206]
[1765265652146,0.0851035,90470.0,90469.0,0.02951272]
[1765265652353,0.0562,90469.0,90468.0,0.05812272]
[1765265653747,0.0287735,90470.0,90467.0,0.02951272]
[1765265653748,0.0683238,90468.0,90467.0,0.02951272]
[1765265653952,0.07394,90465.0,90464.0,0.02951272]
[1765265654152,0.0683245,90462.0,90461.0,0.02951272]
[1765265654559,0.0683245,90462.0,90461.0,0.05724272]
[1765265654760,0.0683245,90462.0,90461.0,0.08721272]
[1765265656157,0.05727,90462.0,90461.0,0.08721272]
[1765265656762,0.05727,90462.0,90461.0,0.08821272]
[1765265657153,0.05727,90462.0,90461.0,0.0587]
[1765265658752,0.05727,90462.0,90461.0,0.08821272]
[1765265659650,0.05727,90462.0,90461.0,0.0587]
[1765265661559,0.02995,90462.0,90461.0,0.08821272]
[1765265661760,0.02995,90462.0,90461.0,0.0587]
[1765265661960,0.02995,90462.0,90461.0,0.08822389]
[1765265662163,0.05727,90462.0,90461.0,0.08822389]
[1765265662868,0.05727,90462.0,90461.0,0.0587]
[1765265663876,0.02995,90462.0,90461.0,0.0587]
[1765265664068,0.0683242,90465.0,90464.0,0.0577]
[1765265665868,0.02995,90469.0,90468.0,0.0577]
[1765265666269,0.05727,90469.0,90468.0,0.0577]
[1765265666568,0.06848845,90478.0,90477.0,0.0577]
[1765265667862,0.07148845,90478.0,90477.0,0.0577]
[1765265668469,0.07448845,90478.0,90477.0,0.0577]
[1765265669267,0.00616585,90478.0,90477.0,0.0577]
[1765265670663,0.00216585,90478.0,90477.0,0.0577]
[1765265670865,0.00416585,90478.0,90477.0,0.0577]
[1765265674168,0.00416585,90478.0,90477.0,0.09717206]
[1765265676079,0.00416585,90478.0,90477.0,0.0577]
[1765265676284,0.00416585,90478.0,90477.0,0.09717206]
[1765265676766,0.00416585,90478.0,90477.0,0.0577]
[1765265677275,0.00416585,90478.0,90477.0,0.09717206]
[1765265680674,0.00416585,90478.0,90477.0,0.0577]
[1765265682181,0.00416585,90478.0,90477.0,0.09704979]
[1765265682886,0.03411585,90478.0,90477.0,0.09704979]
[1765265683483,0.06350585,90478.0,90477.0,0.09704979]
[1765265685595,0.06350585,90478.0,90477.0,0.0577]
[1765265689289,0.06350585,90478.0,90477.0,0.09704979]
[1765265690185,0.0689127,90477.0,90476.0,0.03934979]
[1765265690386,0.0689127,90477.0,90476.0,0.06892979]
[1765265690581,0.0689127,90477.0,90476.0,0.09598979]
[1765265691300,0.0689127,90477.0,90476.0,0.05664]
[1765265691593,0.0729127,90477.0,90476.0,0.05664]
[1765265692291,0.06186,90477.0,90476.0,0.09601365]
[1765265694197,0.06186,90477.0,90476.0,0.05664]
[1765265702110,0.0011051,90490.0,90489.0,0.0676912]
[1765265703604,0.00016585,90499.0,90498.0,0.0679601]
[1765265703911,0.01726,90520.0,90514.0,0.0679582]
[1765265703912,0.0310348,90515.0,90514.0,0.0679582]
[1765265704408,0.0310348,90515.0,90514.0,0.09746898]
[1765265705001,0.0603248,90515.0,90514.0,0.09746898]
[1765265705317,0.05922,90535.0,90530.0,0.0110461]
[1765265705609,0.0110451,90539.0,90538.0,0.05691]
[1765265705907,0.02993,90543.0,90542.0,0.05691]
[1765265706103,0.05922,90543.0,90542.0,0.05691]
[1765265707207,0.06222,90543.0,90542.0,0.05691]
[1765265708298,0.06522,90543.0,90542.0,0.05691]
[1765265709006,0.05922,90537.0,90536.0,0.02775]
[1765265709210,0.05922,90529.0,90528.0,0.02775]
[1765265709810,0.0805669,90524.0,90523.0,0.00016576]
[1765265712707,0.05606,90505.0,90504.0,0.08648757]
[1765265712913,0.05606,90505.0,90504.0,0.05701]
[1765265714401,0.05606,90505.0,90504.0,0.05901]
[1765265714908,0.05622512,90514.0,90513.0,0.05701]
[1765265716406,0.05622512,90514.0,90513.0,0.06001]
[1765265721411,0.00016512,90514.0,90513.0,0.06001]
[1765265722110,0.07483592,90523.0,90522.0,0.07451]
[1765265722306,0.0279,90523.0,90522.0,0.07451]
[1765265722507,0.05606,90536.0,90535.0,0.05701]
[1765265724018,0.05906,90536.0,90535.0,0.05701]
[1765265724810,0.05906,90536.0,90535.0,0.02815]
[1765265725025,0.06106,90536.0,90535.0,0.02815]
[1765265725414,0.06106,90536.0,90535.0,0.05701]
[1765265727113,0.06106,90536.0,90535.0,0.0680556]
[1765265727320,0.06106,90536.0,90535.0,0.05701]
[1765265727520,0.0721055,90536.0,90535.0,0.05701]
[1765265728023,0.06106,90536.0,90535.0,0.05701]
[1765265731416,0.05606,90527.0,90526.0,0.02831566]
[1765265731618,0.05606,90527.0,90526.0,0.05717566]
[1765265732220,0.05606,90527.0,90526.0,0.08665323]
[1765265732526,0.05706,90527.0,90526.0,0.08665323]
[1765265733321,0.05706,90527.0,90526.0,0.05717566]
[1765265742016,0.05706,90527.0,90526.0,0.06822236]
[1765265744024,0.05706,90527.0,90526.0,0.05717566]
[1765265744824,0.05674,90527.0,90526.0,0.05717566]
[1765265747228,0.05674,90527.0,90526.0,0.09656166]
[1765265749326,0.05674,90527.0,90526.0,0.09658332]
[1765265750326,0.05674,90527.0,90526.0,0.05717566]
[1765265752330,0.05674,90527.0,90526.0,0.11625466]
[1765265753732,0.05674,90527.0,90526.0,0.05717566]
[1765265761338,0.05674,90527.0,90526.0,0.11625466]
[1765265761538,0.05674,90527.0,90526.0,0.05717566]
[1765265764640,0.05674,90527.0,90515.0,0.06033259]
[1765265764641,0.07129,90516.0,90515.0,0.06033259]
[1765265764839,0.07129,90516.0,90496.0,0.11627637]
[1765265764840,0.0656395,90503.0,90502.0,0.05792]
[1765265765349,0.0656395,90503.0,90502.0,0.09738944]
[1765265765542,0.0656395,90503.0,90502.0,0.05792]
[1765265767045,0.0656395,90503.0,90502.0,0.02863]
[1765265767250,0.0656395,90503.0,90502.0,0.05818452]
[1765265767551,0.0656395,90503.0,90502.0,0.06518452]
[1765265768141,0.0656395,90503.0,90502.0,0.06492]
[1765265769738,0.0656395,90503.0,90502.0,0.007]
[1765265770337,0.0656395,90503.0,90493.0,0.00016566]
[1765265770338,0.0656406,90494.0,90493.0,0.00016566]
[1765265770836,0.0656406,90494.0,90493.0,0.02879566]
[1765265771040,0.0656406,90494.0,90493.0,0.05808566]
[1765265771438,0.0656406,90494.0,90493.0,0.06208566]
[1765265771650,0.0676406,90494.0,90493.0,0.06208566]
[1765265772242,0.0706406,90494.0,90493.0,0.05808566]
[1765265773853,0.005,90494.0,90493.0,0.05808566]
[1765265780562,0.005,90494.0,90493.0,0.06913636]
[1765265780761,0.004,90494.0,90493.0,0.06913636]
[1765265780958,0.00016566,90512.0,90511.0,0.0669585]
[1765265782853,0.00016566,90512.0,90511.0,0.0689585]
[1765265783253,0.00016566,90512.0,90511.0,0.0709585]
[1765265783453,0.00016566,90512.0,90511.0,0.0689585]
[1765265783653,0.00016566,90512.0,90511.0,0.0709585]
[1765265784552,0.00016566,90512.0,90511.0,0.10042703]
[1765265785255,0.00016566,90512.0,90511.0,0.0709585]
[1765265785667,0.05738,90539.0,90525.0,0.0110468]
[1765265785856,0.05738,90539.0,90538.0,0.05591]
[1765265786668,0.0684251,90539.0,90538.0,0.05591]
[1765265786964,0.0694251,90539.0,90538.0,0.05591]
[1765265787259,0.0684251,90539.0,90538.0,0.05591]
[1765265787460,0.0724251,90539.0,90538.0,0.05591]
[1765265788862,0.0744251,90539.0,90538.0,0.05591]
[1765265790457,0.0463251,90539.0,90538.0,0.05591]
[1765265790763,0.0744251,90539.0,90538.0,0.05591]
[1765265791854,0.0744251,90539.0,90538.0,0.02777]
[1765265792056,0.0744251,90539.0,90529.0,0.00016576]
[1765265792057,0.0684262,90530.0,90529.0,0.02793576]
[1765265792255,0.0684262,90530.0,90529.0,0.05607576]
[1765265792753,0.0684253,90538.0,90537.0,0.05591]
[1765265794165,0.0714253,90538.0,90537.0,0.05591]
[1765265795157,0.0734253,90538.0,90537.0,0.05591]
[1765265796461,0.05738,90531.0,90530.0,0.0842662]
[1765265797167,0.05738,90535.0,90534.0,0.05591]
[1765265798968,0.05938,90535.0,90534.0,0.05591]
[1765265799369,0.06238,90535.0,90534.0,0.05591]
[1765265806073,0.03428,90535.0,90534.0,0.05591]
[1765265806466,0.06183,90535.0,90534.0,0.05591]
[1765265808078,0.06183,90535.0,90534.0,0.0669557]
[1765265809379,0.005,90535.0,90534.0,0.0669557]
[1765265811185,0.005,90535.0,90534.0,0.10625462]
[1765265812392,0.005,90535.0,90534.0,0.0669557]
[1765265813677,0.005,90535.0,90534.0,0.12589913]
[1765265815986,0.005,90535.0,90534.0,0.0669557]
[1765265818791,0.00110449,90540.0,90539.0,0.0678551]
[1765265819991,0.00310449,90540.0,90539.0,0.0678551]
[1765265820994,0.00610449,90540.0,90539.0,0.0678551]
[1765265822283,0.06264449,90540.0,90539.0,0.0678551]
[1765265823383,0.03509449,90540.0,90539.0,0.0678551]
[1765265824100,0.03509449,90540.0,90539.0,0.05681]
[1765265824893,0.06264449,90540.0,90539.0,0.05681]
[1765265825090,0.05654,90530.0,90529.0,0.02820576]
[1765265825291,0.05654,90530.0,90529.0,0.05697576]
[1765265826298,0.05754,90530.0,90529.0,0.05697576]
[1765265826790,0.05754,90530.0,90529.0,0.08651854]
[1765265827298,0.001,90530.0,90529.0,0.08651854]
[1765265829901,0.001,90530.0,90529.0,0.05697576]
[1765265833301,0.004,90540.0,90539.0,0.05648]
[1765265834589,0.06029,90540.0,90539.0,0.05648]
[1765265836603,0.004,90540.0,90539.0,0.05648]
[1765265839397,0.06029,90540.0,90539.0,0.05648]
[1765265839798,0.03316,90540.0,90539.0,0.05648]
[1765265840100,0.004,90540.0,90539.0,0.09587679]
[1765265840506,0.004,90540.0,90539.0,0.05648]
[1765265842608,0.06029,90540.0,90539.0,0.05648]
[1765265843508,0.06029,90540.0,90539.0,0.09587746]
[1765265846905,0.004,90540.0,90539.0,0.09587746]
[1765265848711,0.004,90540.0,90539.0,0.10692256]
[1765265850909,0.03316,90540.0,90539.0,0.10692256]
[1765265851413,0.03316,90540.0,90539.0,0.0675251]
[1765265851806,0.004,90540.0,90539.0,0.10691422]
[1765265852010,0.004,90540.0,90539.0,0.0675251]
[1765265856914,0.004,90540.0,90539.0,0.12658158]
[1765265858302,0.004,90540.0,90539.0,0.0675251]
[1765265871619,0.03346,90540.0,90539.0,0.0675251]
[1765265873817,0.06154,90540.0,90539.0,0.0675251]
[1765265874019,0.072585,90540.0,90539.0,0.05648]
[1765265876128,0.06154,90540.0,90539.0,0.05648]
[1765265876624,0.06154,90540.0,90539.0,0.0675251]
[1765265877722,0.06154,90540.0,90539.0,0.05648]
[1765265878417,0.004,90540.0,90539.0,0.05648]
[1765265885228,0.00022109,90550.0,90549.0,0.0676039]
[1765265885428,0.00022109,90550.0,90549.0,0.12668739]
[1765265885732,0.05685109,90550.0,90549.0,0.0676039]
[1765265886124,0.05685109,90550.0,90549.0,0.12667572]
[1765265886426,0.00022109,90550.0,90549.0,0.12667572]
[1765265886925,0.00322109,90550.0,90549.0,0.12667572]
[1765265887332,0.00722109,90550.0,90549.0,0.12667572]
[1765265888136,0.00722109,90550.0,90549.0,0.0676039]
[1765265888929,0.00722109,90550.0,90549.0,0.12667572]
[1765265889233,0.00722109,90550.0,90549.0,0.0676039]
[1765265890323,0.06385109,90550.0,90549.0,0.0676039]
[1765265893535,0.00722109,90550.0,90549.0,0.0676039]
[1765265895733,0.07404489,90550.0,90549.0,0.0676039]
[1765265898838,0.06300109,90550.0,90549.0,0.0676039]
[1765265900045,0.00722109,90550.0,90549.0,0.0676039]
[1765265908239,0.00722109,90550.0,90549.0,0.12667572]
[1765265908444,0.06300109,90550.0,90549.0,0.12667572]
[1765265909362,0.06300109,90550.0,90549.0,0.0676039]
[1765265910954,0.06300109,90550.0,90549.0,0.05656]
[1765265911157,0.06300109,90550.0,90549.0,0.11563182]
[1765265911359,0.06300109,90550.0,90549.0,0.05656]
[1765265911551,0.03583109,90550.0,90549.0,0.05656]
[1765265916858,0.04687489,90550.0,90549.0,0.05656]
[1765265917550,0.07404489,90550.0,90549.0,0.05656]
[1765265923054,0.00722109,90550.0,90549.0,0.05656]
[1765265923861,0.03510109,90550.0,90549.0,0.05656]
[1765265924564,0.04614489,90550.0,90549.0,0.05656]
[1765265924771,0.07368489,90550.0,90549.0,0.05656]
[1765265925765,0.04614489,90550.0,90549.0,0.05656]
[1765265926363,0.07368489,90550.0,90549.0,0.05656]
[1765265926763,0.06264109,90550.0,90549.0,0.05656]
[1765265936768,0.00722109,90550.0,90549.0,0.05656]
[1765265936973,0.03510109,90550.0,90549.0,0.05656]
[1765265937275,0.00722109,90550.0,90549.0,0.05656]
[1765265937476,0.03510109,90550.0,90549.0,0.05656]
[1765265938269,0.00722109,90550.0,90549.0,0.05656]
[1765265938975,0.06264109,90550.0,90549.0,0.05656]
[1765265939375,0.00722109,90550.0,90549.0,0.05656]
[1765265939572,0.02788,90584.0,90583.0,0.05502]
[1765265939774,0.05542,90582.0,90581.0,0.02452046]
[1765265939975,0.0664613,90570.0,90569.0,0.03950398]
[1765265940164,0.05542,90566.0,90565.0,0.03950398]
[1765265940571,0.05542,90566.0,90565.0,0.06691398]
[1765265940776,0.01633,90568.0,90556.0,0.04685889]
[1765265940777,0.0664627,90559.0,90558.0,0.11427597]
[1765265941168,0.0664627,90559.0,90558.0,0.05502]
[1765265941568,0.05542,90559.0,90558.0,0.05502]
[1765265941775,0.05542,90559.0,90558.0,0.11427597]
[1765265941974,0.05542,90559.0,90558.0,0.05502]
[1765265942572,0.05742,90559.0,90558.0,0.05502]
[1765265943072,0.05842,90559.0,90558.0,0.11425449]
[1765265944173,0.03088,90559.0,90558.0,0.11425449]
[1765265944875,0.003,90559.0,90558.0,0.11425449]
[1765265946373,0.003,90559.0,90558.0,0.05502]
[1765265946775,0.003,90559.0,90558.0,0.11425449]
[1765265946978,0.003,90559.0,90558.0,0.05502]
[1765265947485,0.06049,90559.0,90558.0,0.05502]
[1765265947983,0.05849,90559.0,90558.0,0.05502]
[1765265948885,0.0685328,90558.0,90557.0,0.05918578]
[1765265949076,0.0685328,90558.0,90554.0,0.05803]
[1765265949077,0.05749,90555.0,90554.0,0.05803]
[1765265950177,0.05749,90555.0,90554.0,0.06003]
[1765265951786,0.0685332,90555.0,90554.0,0.06003]
[1765265959286,0.05749,90555.0,90554.0,0.06003]
[1765265960799,0.0685332,90555.0,90554.0,0.06003]
[1765265961587,0.0685332,90555.0,90554.0,0.002]
[1765265961994,0.0664738,90550.0,90549.0,0.00016566]
[1765265962587,0.0827144,90545.0,90544.0,0.03948632]
[1765265963085,0.05543,90544.0,90543.0,0.03948632]
[1765265963687,0.05543,90541.0,90540.0,0.03079449]
[1765265963894,0.05543,90541.0,90540.0,0.05939449]
[1765265964484,0.05543,90547.0,90546.0,0.05829]
[1765265964689,0.0271,90547.0,90546.0,0.05829]
[1765265964894,0.0271,90547.0,90546.0,0.09774889]
[1765265965082,0.0271,90547.0,90546.0,0.05829]
[1765265965278,0.05543,90547.0,90546.0,0.05829]
[1765265965791,0.05543,90547.0,90546.0,0.05929]
[1765265967493,0.00016566,90550.0,90549.0,0.05829]
[1765265971183,0.02726566,90550.0,90549.0,0.05829]
[1765265971593,0.05559566,90550.0,90549.0,0.05829]
[1765265975398,0.06663946,90550.0,90549.0,0.05829]
[1765265975599,0.05559566,90550.0,90549.0,0.05829]
[1765265977094,0.02726566,90550.0,90549.0,0.05829]
[1765265977501,0.05559566,90550.0,90549.0,0.05829]
[1765265977694,0.02726566,90550.0,90549.0,0.05829]
[1765265977900,0.00016566,90550.0,90549.0,0.05829]
[1765265979501,0.05559566,90550.0,90549.0,0.05829]
[1765265980000,0.02726566,90550.0,90549.0,0.05829]
[1765265981198,0.00016566,90550.0,90549.0,0.05829]
[1765265982199,0.02726566,90550.0,90549.0,0.05829]
[1765265982393,0.05559566,90550.0,90549.0,0.05829]
[1765265984296,0.06663946,90550.0,90549.0,0.05829]
[1765265984497,0.05559566,90550.0,90549.0,0.05829]
[1765265986003,0.05559566,90550.0,90549.0,0.11747807]
[1765265986306,0.05736,90547.0,90546.0,0.08675807]
[1765265986504,0.0684046,90543.0,90542.0,0.08675807]
[1765265986806,0.0684046,90543.0,90542.0,0.055]
[1765265987003,0.05736,90541.0,90540.0,0.02867449]
[1765265987210,0.05736,90541.0,90540.0,0.00110449]
[1765265987508,0.05736,90541.0,90540.0,0.02867449]
[1765265988207,0.05736,90541.0,90540.0,0.05610449]
[1765265988401,0.05736,90541.0,90540.0,0.07356449]
[1765265988708,0.05736,90541.0,90540.0,0.07556449]
[1765265988909,0.05736,90541.0,90540.0,0.07656449]
[1765265989901,0.0403242,90547.0,90546.0,0.055]
[1765265990112,0.0684042,90547.0,90546.0,0.09447529]
[1765265990410,0.05736,90547.0,90546.0,0.10551959]
[1765265990612,0.05736,90547.0,90546.0,0.0660443]
[1765265991202,0.05736,90547.0,90546.0,0.0670443]
[1765265993707,0.02928,90547.0,90546.0,0.0670443]
[1765265993913,0.05752566,90550.0,90549.0,0.0660439]
[1765265994113,0.05752566,90550.0,90549.0,0.11715431]
[1765265994406,0.05752566,90550.0,90549.0,0.0660439]
[1765265995006,0.00016566,90550.0,90549.0,0.0660439]
[1765265997105,0.00016566,90550.0,90549.0,0.12523197]
[1765265997716,0.02944566,90550.0,90549.0,0.12523197]
[1765265998015,0.00016566,90550.0,90549.0,0.12523197]
[1765265998214,0.05752566,90550.0,90549.0,0.12523197]
[1765265998414,0.02944566,90550.0,90549.0,0.12523197]
[1765265998812,0.00016566,90550.0,90549.0,0.12523197]
[1765265999014,0.05752566,90550.0,90549.0,0.12523197]
[1765266000605,0.05752566,90550.0,90549.0,0.11418807]
[1765266000813,0.05752566,90550.0,90549.0,0.055]
[1765266001119,0.05736,90547.0,90546.0,0.11418807]
[1765266001514,0.05736,90547.0,90546.0,0.02757]
[1765266001916,0.05736,90545.0,90544.0,0.05918807]
[1765266002119,0.05736,90541.0,90540.0,0.06029256]
[1765266002312,0.05736,90541.0,90540.0,0.00110449]
[1765266002711,0.05736,90541.0,90540.0,0.06029256]
[1765266002920,0.05736,90541.0,90540.0,0.08786256]
[1765266003111,0.05736,90541.0,90540.0,0.11529256]
[1765266003523,0.05736,90541.0,90540.0,0.13275256]
[1765266003922,0.05736,90541.0,90540.0,0.13375256]
[1765266004420,0.05736,90541.0,90540.0,0.13575256]
[1765266005515,0.0684044,90546.0,90545.0,0.055]
[1765266005717,0.00016566,90550.0,90540.0,0.08075256]
[1765266005718,0.05692,90549.0,90546.0,0.0289143]
[1765266006023,0.00016566,90550.0,90549.0,0.0691739]
[1765266006227,0.05708566,90550.0,90549.0,0.0691739]
[1765266010323,0.05692,90548.0,90547.0,0.05918807]
[1765266010531,0.05692,90548.0,90547.0,0.08909807]
[1765266010721,0.07325,90546.0,90545.0,0.05918807]
[1765266010920,0.05692,90543.0,90542.0,0.05918807]
[1765266011121,0.05692,90543.0,90542.0,0.05813]
[1765266011536,0.05692,90543.0,90542.0,0.11731807]
[1765266012124,0.02768,90543.0,90542.0,0.11731807]
[1765266012527,0.0670239,90549.0,90548.0,0.05945]
[1765266013532,0.05598,90549.0,90548.0,0.05945]
[1765266013735,0.05598,90549.0,90548.0,0.06045]
[1765266015321,0.00016566,90550.0,90549.0,0.0684139]
[1765266016423,0.05683566,90550.0,90549.0,0.0684139]
[1765266018235,0.05683566,90550.0,90549.0,0.05737]
[1765266018935,0.05683566,90550.0,90549.0,0.0684139]
[1765266022021,0.05683566,90550.0,90549.0,0.05737]
[1765266022227,0.05667,90545.0,90544.0,0.05914094]
[1765266022535,0.0677149,90541.0,90540.0,0.00110449]
[1765266022927,0.0677149,90541.0,90540.0,0.04055749]
[1765266023226,0.0677156,90535.0,90534.0,0.00016566]
[1765266023625,0.05667,90517.0,90516.0,0.05914094]
[1765266023829,0.0677179,90516.0,90500.0,0.0110498]
[1765266024426,0.0677179,90516.0,90512.0,0.02955309]
[1765266025336,0.0677179,90516.0,90509.0,0.02955309]
[1765266025639,0.0677179,90516.0,90515.0,0.0614748]
[1765266025828,0.0394179,90516.0,90515.0,0.0614748]
[1765266026023,0.0677179,90516.0,90515.0,0.09102789]
[1765266026227,0.0677179,90516.0,90515.0,0.0664748]